{"text_format":"3","workbook":"xlsx","n_sheets":4,"sheets":["Budsjettoversikt","Budsjettsammendrag","Månedlige utgifter","Ekstra data"],"not_rendered":{"charts":1,"images":4,"defined_names":7,"pivot_tables":2},"read":"whole","date_system":"1900"}

{"sheet":"Budsjettoversikt","index":0,"n_rows":12,"n_cols":8,"rows_kept":12,"merged":[[2,1,2,2],[3,1,3,2],[4,1,4,2]]}
[{"$nulls":7}," "]
[null,"Saldo"]
[null,"Forventet saldo",null,{"$f":"Forventet_inntekt-Forventede_utgifter","v":{"v":1585,"d":"kr 1,585"}},null,"Forventede minus utgifter"]
[null,"Faktisk saldo ",null,{"$f":"Faktisk_inntekt-Faktiske_utgifter","v":{"v":1740,"d":"kr 1,740"}},null,"Faktiske minus utgifter"]
[null,"Differanse",null,{"$f":"D4-D3","v":{"v":155,"d":"kr 155"}},null,"Faktiske minus forventede"]
[null,"Inntekter",{"$nulls":3},"Utgifter"]
[null,null,"Forventede","Faktiske",null,"Forventede","Faktiske"]
[null,"Inntekt 1",{"v":6000,"d":"kr 6,000"},{"v":5800,"d":"kr 5,800"},null,{"$f":"SUM(Månedlige_utgifter_tabell[Forventede kostnader])","v":{"v":7915,"d":"kr 7,915"}},{"$f":"SUM(Månedlige_utgifter_tabell[Faktiske kostnader])","v":{"v":7860,"d":"kr 7,860"}}]
[null,"Inntekt 2",{"v":1000,"d":"kr 1,000"},{"v":2300,"d":"kr 2,300"}]
[null,"Ekstra inntekt",{"v":2500,"d":"kr 2,500"},{"v":1500,"d":"kr 1,500"}]
[null,"Totale inntekter",{"$f":"SUM(C8:C10)","v":{"v":9500,"d":"kr 9,500"}},{"$f":"SUM(D8:D10)","v":{"v":9600,"d":"kr 9,600"}}]
[null,"Oversikt over faktiske utgifter"]

{"sheet":"Budsjettsammendrag","index":1,"n_rows":52,"n_cols":7,"rows_kept":52}
[null,"Budsjettsammendrag",{"$nulls":4}," "]
[]
[null,"Kategorier","Forventede kostnader ","Faktiske kostnader ","Differanse "]
[null,"Barn",{"v":140,"d":"kr 140"},{"v":140,"d":"kr 140"},{"v":4,"d":"kr 4"}]
[null,"Fritidsaktiviteter",{"v":40,"d":"kr 40"},{"v":40,"d":"kr 40"},{"v":1,"d":"kr 1"}]
[null,"Medisinsk",null,null,{"v":1,"d":"kr 1"}]
[null,"Skoleundervisning",{"v":100,"d":"kr 100"},{"v":100,"d":"kr 100"},{"v":1,"d":"kr 1"}]
[null,"Skoleutstyr",null,null,{"v":1,"d":"kr 1"}]
[]
[null,"Bolig",{"v":2830,"d":"kr 2,830"},{"v":2702,"d":"kr 2,702"},{"v":13,"d":"kr 13"}]
[null,"Bensin",{"v":300,"d":"kr 300"},{"v":400,"d":"kr 400"},{"v":1,"d":"kr 1"}]
[null,"Boliglån eller leie",{"v":1700,"d":"kr 1,700"},{"v":1700,"d":"kr 1,700"},{"v":1,"d":"kr 1"}]
[null,"Internettjenester",{"v":100,"d":"kr 100"},{"v":100,"d":"kr 100"},{"v":1,"d":"kr 1"}]
[null,"Kabel/satellitt",{"v":100,"d":"kr 100"},{"v":100,"d":"kr 100"},{"v":1,"d":"kr 1"}]
[null,"Naturgass/olje",null,null,{"v":1,"d":"kr 1"}]
[null,"Rengjøringstjenester",{"v":200,"d":"kr 200"},null,{"v":1,"d":"kr 1"}]
[null,"Strøm",{"v":45,"d":"kr 45"},{"v":50,"d":"kr 50"},{"v":1,"d":"kr 1"}]
[null,"Søppeltømming og resirkulering",{"v":25,"d":"kr 25"},{"v":22,"d":"kr 22"},{"v":1,"d":"kr 1"}]
[null,"Telefon (hjem)",{"v":35,"d":"kr 35"},{"v":39,"d":"kr 39"},{"v":1,"d":"kr 1"}]
[null,"Telefon (mobil)",{"v":60,"d":"kr 60"},{"v":60,"d":"kr 60"},{"v":1,"d":"kr 1"}]
[null,"Utstyr",{"v":40,"d":"kr 40"},{"v":55,"d":"kr 55"},{"v":1,"d":"kr 1"}]
[null,"Vann og kloakk",{"v":25,"d":"kr 25"},{"v":26,"d":"kr 26"},{"v":1,"d":"kr 1"}]
[null,"Vedlikehold",{"v":200,"d":"kr 200"},{"v":150,"d":"kr 150"},{"v":1,"d":"kr 1"}]
[]
[null,"Forsikring",{"v":900,"d":"kr 900"},{"v":900,"d":"kr 900"},{"v":3,"d":"kr 3"}]
[]
[null,"Gaver og veldedighet",{"v":100,"d":"kr 100"},{"v":125,"d":"kr 125"},{"v":4,"d":"kr 4"}]
[]
[null,"Kjæledyr",{"v":170,"d":"kr 170"},{"v":100,"d":"kr 100"},{"v":4,"d":"kr 4"}]
[]
[null,"Lån",{"v":200,"d":"kr 200"},{"v":200,"d":"kr 200"},{"v":5,"d":"kr 5"}]
[]
[null,"Mat",{"v":1100,"d":"kr 1,100"},{"v":1320,"d":"kr 1,320"},{"v":2,"d":"kr 2"}]
[]
[null,"Personlig pleie",{"v":150,"d":"kr 150"},{"v":140,"d":"kr 140"},{"v":5,"d":"kr 5"}]
[]
[null,"Skatter og avgifter",{"v":300,"d":"kr 300"},{"v":300,"d":"kr 300"},{"v":3,"d":"kr 3"}]
[]
[null,"Sparing",{"v":200,"d":"kr 200"},{"v":200,"d":"kr 200"},{"v":2,"d":"kr 2"}]
[]
[null,"Transport",{"v":1425,"d":"kr 1,425"},{"v":1375,"d":"kr 1,375"},{"v":7,"d":"kr 7"}]
[]
[null,"Underholdning",{"v":400,"d":"kr 400"},{"v":358,"d":"kr 358"},{"v":7,"d":"kr 7"}]
[null,"Filmer",{"v":50,"d":"kr 50"},{"v":28,"d":"kr 28"},{"v":1,"d":"kr 1"}]
[null,"Konserter",{"v":50,"d":"kr 50"},{"v":40,"d":"kr 40"},{"v":1,"d":"kr 1"}]
[null,"Musikk (CD-er, nedlastinger og så videre)",{"v":50,"d":"kr 50"},{"v":30,"d":"kr 30"},{"v":1,"d":"kr 1"}]
[null,"Sportsarrangementer",{"v":0,"d":"kr 0"},{"v":40,"d":"kr 40"},{"v":1,"d":"kr 1"}]
[null,"Teater",{"v":200,"d":"kr 200"},{"v":150,"d":"kr 150"},{"v":1,"d":"kr 1"}]
[null,"Video/DVD (kjøp)",{"v":20,"d":"kr 20"},{"v":50,"d":"kr 50"},{"v":1,"d":"kr 1"}]
[null,"Video/DVD (leie)",{"v":30,"d":"kr 30"},{"v":20,"d":"kr 20"},{"v":1,"d":"kr 1"}]
[]
[null,"Suma końcowa",{"v":7915,"d":"kr 7,915"},{"v":7860,"d":"kr 7,860"},{"v":59,"d":"kr 59"}]

{"sheet":"Månedlige utgifter","index":2,"n_rows":61,"n_cols":8,"rows_kept":61}
[{"$nulls":7}," "]
[null,"Beskrivelse","Kategori","Forventede kostnader","Faktiske kostnader","Differanse","Oversikt over faktiske kostnader"]
[null,"Fritidsaktiviteter","Barn",{"v":40,"d":"kr 40"},{"v":40,"d":"kr 40"},{"$f":"IF(OR(Månedlige_utgifter_tabell[[#This Row],[Forventede kostnader]]=\"\",Månedlige_utgifter_tabell[[#This Row],[Faktiske kostnader]]=\"\"),\"\",Månedlige_utgifter_tabell[[#This Row],[Forventede kostnader]]-Månedlige_utgifter_tabell[[#This Row],[Faktiske kostnader]])","v":{"v":0,"d":"kr 0"}},{"$f":"Månedlige_utgifter_tabell[[#This Row],[Faktiske kostnader]]","v":40}]
[null,"Medisinsk","Barn",null,null,{"$f":"IF(OR(Månedlige_utgifter_tabell[[#This Row],[Forventede kostnader]]=\"\",Månedlige_utgifter_tabell[[#This Row],[Faktiske kostnader]]=\"\"),\"\",Månedlige_utgifter_tabell[[#This Row],[Forventede kostnader]]-Månedlige_utgifter_tabell[[#This Row],[Faktiske kostnader]])","v":""},{"$f":"Månedlige_utgifter_tabell[[#This Row],[Faktiske kostnader]]","v":0}]
[null,"Skoleutstyr","Barn",null,null,{"$f":"IF(OR(Månedlige_utgifter_tabell[[#This Row],[Forventede kostnader]]=\"\",Månedlige_utgifter_tabell[[#This Row],[Faktiske kostnader]]=\"\"),\"\",Månedlige_utgifter_tabell[[#This Row],[Forventede kostnader]]-Månedlige_utgifter_tabell[[#This Row],[Faktiske kostnader]])","v":""},{"$f":"Månedlige_utgifter_tabell[[#This Row],[Faktiske kostnader]]","v":0}]
[null,"Skoleundervisning","Barn",{"v":100,"d":"kr 100"},{"v":100,"d":"kr 100"},{"$f":"IF(OR(Månedlige_utgifter_tabell[[#This Row],[Forventede kostnader]]=\"\",Månedlige_utgifter_tabell[[#This Row],[Faktiske kostnader]]=\"\"),\"\",Månedlige_utgifter_tabell[[#This Row],[Forventede kostnader]]-Månedlige_utgifter_tabell[[#This Row],[Faktiske kostnader]])","v":{"v":0,"d":"kr 0"}},{"$f":"Månedlige_utgifter_tabell[[#This Row],[Faktiske kostnader]]","v":100}]
[null,"Konserter","Underholdning",{"v":50,"d":"kr 50"},{"v":40,"d":"kr 40"},{"$f":"IF(OR(Månedlige_utgifter_tabell[[#This Row],[Forventede kostnader]]=\"\",Månedlige_utgifter_tabell[[#This Row],[Faktiske kostnader]]=\"\"),\"\",Månedlige_utgifter_tabell[[#This Row],[Forventede kostnader]]-Månedlige_utgifter_tabell[[#This Row],[Faktiske kostnader]])","v":{"v":10,"d":"kr 10"}},{"$f":"Månedlige_utgifter_tabell[[#This Row],[Faktiske kostnader]]","v":40}]
[null,"Teater","Underholdning",{"v":200,"d":"kr 200"},{"v":150,"d":"kr 150"},{"$f":"IF(OR(Månedlige_utgifter_tabell[[#This Row],[Forventede kostnader]]=\"\",Månedlige_utgifter_tabell[[#This Row],[Faktiske kostnader]]=\"\"),\"\",Månedlige_utgifter_tabell[[#This Row],[Forventede kostnader]]-Månedlige_utgifter_tabell[[#This Row],[Faktiske kostnader]])","v":{"v":50,"d":"kr 50"}},{"$f":"Månedlige_utgifter_tabell[[#This Row],[Faktiske kostnader]]","v":150}]
[null,"Filmer","Underholdning",{"v":50,"d":"kr 50"},{"v":28,"d":"kr 28"},{"$f":"IF(OR(Månedlige_utgifter_tabell[[#This Row],[Forventede kostnader]]=\"\",Månedlige_utgifter_tabell[[#This Row],[Faktiske kostnader]]=\"\"),\"\",Månedlige_utgifter_tabell[[#This Row],[Forventede kostnader]]-Månedlige_utgifter_tabell[[#This Row],[Faktiske kostnader]])","v":{"v":22,"d":"kr 22"}},{"$f":"Månedlige_utgifter_tabell[[#This Row],[Faktiske kostnader]]","v":28}]
[null,"Musikk (CD-er, nedlastinger og så videre)","Underholdning",{"v":50,"d":"kr 50"},{"v":30,"d":"kr 30"},{"$f":"IF(OR(Månedlige_utgifter_tabell[[#This Row],[Forventede kostnader]]=\"\",Månedlige_utgifter_tabell[[#This Row],[Faktiske kostnader]]=\"\"),\"\",Månedlige_utgifter_tabell[[#This Row],[Forventede kostnader]]-Månedlige_utgifter_tabell[[#This Row],[Faktiske kostnader]])","v":{"v":20,"d":"kr 20"}},{"$f":"Månedlige_utgifter_tabell[[#This Row],[Faktiske kostnader]]","v":30}]
[null,"Sportsarrangementer","Underholdning",{"v":0,"d":"kr 0"},{"v":40,"d":"kr 40"},{"$f":"IF(OR(Månedlige_utgifter_tabell[[#This Row],[Forventede kostnader]]=\"\",Månedlige_utgifter_tabell[[#This Row],[Faktiske kostnader]]=\"\"),\"\",Månedlige_utgifter_tabell[[#This Row],[Forventede kostnader]]-Månedlige_utgifter_tabell[[#This Row],[Faktiske kostnader]])","v":{"v":-40,"d":"-kr 40"}},{"$f":"Månedlige_utgifter_tabell[[#This Row],[Faktiske kostnader]]","v":40}]
[null,"Video/DVD (kjøp)","Underholdning",{"v":20,"d":"kr 20"},{"v":50,"d":"kr 50"},{"$f":"IF(OR(Månedlige_utgifter_tabell[[#This Row],[Forventede kostnader]]=\"\",Månedlige_utgifter_tabell[[#This Row],[Faktiske kostnader]]=\"\"),\"\",Månedlige_utgifter_tabell[[#This Row],[Forventede kostnader]]-Månedlige_utgifter_tabell[[#This Row],[Faktiske kostnader]])","v":{"v":-30,"d":"-kr 30"}},{"$f":"Månedlige_utgifter_tabell[[#This Row],[Faktiske kostnader]]","v":50}]
[null,"Video/DVD (leie)","Underholdning",{"v":30,"d":"kr 30"},{"v":20,"d":"kr 20"},{"$f":"IF(OR(Månedlige_utgifter_tabell[[#This Row],[Forventede kostnader]]=\"\",Månedlige_utgifter_tabell[[#This Row],[Faktiske kostnader]]=\"\"),\"\",Månedlige_utgifter_tabell[[#This Row],[Forventede kostnader]]-Månedlige_utgifter_tabell[[#This Row],[Faktiske kostnader]])","v":{"v":10,"d":"kr 10"}},{"$f":"Månedlige_utgifter_tabell[[#This Row],[Faktiske kostnader]]","v":20}]
[null,"Spise ute","Mat",{"v":1000,"d":"kr 1,000"},{"v":1200,"d":"kr 1,200"},{"$f":"IF(OR(Månedlige_utgifter_tabell[[#This Row],[Forventede kostnader]]=\"\",Månedlige_utgifter_tabell[[#This Row],[Faktiske kostnader]]=\"\"),\"\",Månedlige_utgifter_tabell[[#This Row],[Forventede kostnader]]-Månedlige_utgifter_tabell[[#This Row],[Faktiske kostnader]])","v":{"v":-200,"d":"-kr 200"}},{"$f":"Månedlige_utgifter_tabell[[#This Row],[Faktiske kostnader]]","v":1200}]
[null,"Dagligvarer","Mat",{"v":100,"d":"kr 100"},{"v":120,"d":"kr 120"},{"$f":"IF(OR(Månedlige_utgifter_tabell[[#This Row],[Forventede kostnader]]=\"\",Månedlige_utgifter_tabell[[#This Row],[Faktiske kostnader]]=\"\"),\"\",Månedlige_utgifter_tabell[[#This Row],[Forventede kostnader]]-Månedlige_utgifter_tabell[[#This Row],[Faktiske kostnader]])","v":{"v":-20,"d":"-kr 20"}},{"$f":"Månedlige_utgifter_tabell[[#This Row],[Faktiske kostnader]]","v":120}]
[null,"Veldedighet 1","Gaver og veldedighet",{"v":75,"d":"kr 75"},{"v":100,"d":"kr 100"},{"$f":"IF(OR(Månedlige_utgifter_tabell[[#This Row],[Forventede kostnader]]=\"\",Månedlige_utgifter_tabell[[#This Row],[Faktiske kostnader]]=\"\"),\"\",Månedlige_utgifter_tabell[[#This Row],[Forventede kostnader]]-Månedlige_utgifter_tabell[[#This Row],[Faktiske kostnader]])","v":{"v":-25,"d":"-kr 25"}},{"$f":"Månedlige_utgifter_tabell[[#This Row],[Faktiske kostnader]]","v":100}]
[null,"Veldedighet 2","Gaver og veldedighet",{"v":25,"d":"kr 25"},{"v":25,"d":"kr 25"},{"$f":"IF(OR(Månedlige_utgifter_tabell[[#This Row],[Forventede kostnader]]=\"\",Månedlige_utgifter_tabell[[#This Row],[Faktiske kostnader]]=\"\"),\"\",Månedlige_utgifter_tabell[[#This Row],[Forventede kostnader]]-Månedlige_utgifter_tabell[[#This Row],[Faktiske kostnader]])","v":{"v":0,"d":"kr 0"}},{"$f":"Månedlige_utgifter_tabell[[#This Row],[Faktiske kostnader]]","v":25}]
[null,"Gave 1","Gaver og veldedighet",null,null,{"$f":"IF(OR(Månedlige_utgifter_tabell[[#This Row],[Forventede kostnader]]=\"\",Månedlige_utgifter_tabell[[#This Row],[Faktiske kostnader]]=\"\"),\"\",Månedlige_utgifter_tabell[[#This Row],[Forventede kostnader]]-Månedlige_utgifter_tabell[[#This Row],[Faktiske kostnader]])","v":""},{"$f":"Månedlige_utgifter_tabell[[#This Row],[Faktiske kostnader]]","v":0}]
[null,"Gave 2","Gaver og veldedighet",null,null,{"$f":"IF(OR(Månedlige_utgifter_tabell[[#This Row],[Forventede kostnader]]=\"\",Månedlige_utgifter_tabell[[#This Row],[Faktiske kostnader]]=\"\"),\"\",Månedlige_utgifter_tabell[[#This Row],[Forventede kostnader]]-Månedlige_utgifter_tabell[[#This Row],[Faktiske kostnader]])","v":""},{"$f":"Månedlige_utgifter_tabell[[#This Row],[Faktiske kostnader]]","v":0}]
[null,"Kabel/satellitt","Bolig",{"v":100,"d":"kr 100"},{"v":100,"d":"kr 100"},{"$f":"IF(OR(Månedlige_utgifter_tabell[[#This Row],[Forventede kostnader]]=\"\",Månedlige_utgifter_tabell[[#This Row],[Faktiske kostnader]]=\"\"),\"\",Månedlige_utgifter_tabell[[#This Row],[Forventede kostnader]]-Månedlige_utgifter_tabell[[#This Row],[Faktiske kostnader]])","v":{"v":0,"d":"kr 0"}},{"$f":"Månedlige_utgifter_tabell[[#This Row],[Faktiske kostnader]]","v":100}]
[null,"Strøm","Bolig",{"v":45,"d":"kr 45"},{"v":50,"d":"kr 50"},{"$f":"IF(OR(Månedlige_utgifter_tabell[[#This Row],[Forventede kostnader]]=\"\",Månedlige_utgifter_tabell[[#This Row],[Faktiske kostnader]]=\"\"),\"\",Månedlige_utgifter_tabell[[#This Row],[Forventede kostnader]]-Månedlige_utgifter_tabell[[#This Row],[Faktiske kostnader]])","v":{"v":-5,"d":"-kr 5"}},{"$f":"Månedlige_utgifter_tabell[[#This Row],[Faktiske kostnader]]","v":50}]
[null,"Bensin","Bolig",{"v":300,"d":"kr 300"},{"v":400,"d":"kr 400"},{"$f":"IF(OR(Månedlige_utgifter_tabell[[#This Row],[Forventede kostnader]]=\"\",Månedlige_utgifter_tabell[[#This Row],[Faktiske kostnader]]=\"\"),\"\",Månedlige_utgifter_tabell[[#This Row],[Forventede kostnader]]-Månedlige_utgifter_tabell[[#This Row],[Faktiske kostnader]])","v":{"v":-100,"d":"-kr 100"}},{"$f":"Månedlige_utgifter_tabell[[#This Row],[Faktiske kostnader]]","v":400}]
[null,"Rengjøringstjenester","Bolig",{"v":200,"d":"kr 200"},null,{"$f":"IF(OR(Månedlige_utgifter_tabell[[#This Row],[Forventede kostnader]]=\"\",Månedlige_utgifter_tabell[[#This Row],[Faktiske kostnader]]=\"\"),\"\",Månedlige_utgifter_tabell[[#This Row],[Forventede kostnader]]-Månedlige_utgifter_tabell[[#This Row],[Faktiske kostnader]])","v":""},{"$f":"Månedlige_utgifter_tabell[[#This Row],[Faktiske kostnader]]","v":0}]
[null,"Vedlikehold","Bolig",{"v":200,"d":"kr 200"},{"v":150,"d":"kr 150"},{"$f":"IF(OR(Månedlige_utgifter_tabell[[#This Row],[Forventede kostnader]]=\"\",Månedlige_utgifter_tabell[[#This Row],[Faktiske kostnader]]=\"\"),\"\",Månedlige_utgifter_tabell[[#This Row],[Forventede kostnader]]-Månedlige_utgifter_tabell[[#This Row],[Faktiske kostnader]])","v":{"v":50,"d":"kr 50"}},{"$f":"Månedlige_utgifter_tabell[[#This Row],[Faktiske kostnader]]","v":150}]
[null,"Boliglån eller leie","Bolig",{"v":1700,"d":"kr 1,700"},{"v":1700,"d":"kr 1,700"},{"$f":"IF(OR(Månedlige_utgifter_tabell[[#This Row],[Forventede kostnader]]=\"\",Månedlige_utgifter_tabell[[#This Row],[Faktiske kostnader]]=\"\"),\"\",Månedlige_utgifter_tabell[[#This Row],[Forventede kostnader]]-Månedlige_utgifter_tabell[[#This Row],[Faktiske kostnader]])","v":{"v":0,"d":"kr 0"}},{"$f":"Månedlige_utgifter_tabell[[#This Row],[Faktiske kostnader]]","v":1700}]
[null,"Naturgass/olje","Bolig",null,null,{"$f":"IF(OR(Månedlige_utgifter_tabell[[#This Row],[Forventede kostnader]]=\"\",Månedlige_utgifter_tabell[[#This Row],[Faktiske kostnader]]=\"\"),\"\",Månedlige_utgifter_tabell[[#This Row],[Forventede kostnader]]-Månedlige_utgifter_tabell[[#This Row],[Faktiske kostnader]])","v":""},{"$f":"Månedlige_utgifter_tabell[[#This Row],[Faktiske kostnader]]","v":0}]
[null,"Internettjenester","Bolig",{"v":100,"d":"kr 100"},{"v":100,"d":"kr 100"},{"$f":"IF(OR(Månedlige_utgifter_tabell[[#This Row],[Forventede kostnader]]=\"\",Månedlige_utgifter_tabell[[#This Row],[Faktiske kostnader]]=\"\"),\"\",Månedlige_utgifter_tabell[[#This Row],[Forventede kostnader]]-Månedlige_utgifter_tabell[[#This Row],[Faktiske kostnader]])","v":{"v":0,"d":"kr 0"}},{"$f":"Månedlige_utgifter_tabell[[#This Row],[Faktiske kostnader]]","v":100}]
[null,"Telefon (mobil)","Bolig",{"v":60,"d":"kr 60"},{"v":60,"d":"kr 60"},{"$f":"IF(OR(Månedlige_utgifter_tabell[[#This Row],[Forventede kostnader]]=\"\",Månedlige_utgifter_tabell[[#This Row],[Faktiske kostnader]]=\"\"),\"\",Månedlige_utgifter_tabell[[#This Row],[Forventede kostnader]]-Månedlige_utgifter_tabell[[#This Row],[Faktiske kostnader]])","v":{"v":0,"d":"kr 0"}},{"$f":"Månedlige_utgifter_tabell[[#This Row],[Faktiske kostnader]]","v":60}]
[null,"Telefon (hjem)","Bolig",{"v":35,"d":"kr 35"},{"v":39,"d":"kr 39"},{"$f":"IF(OR(Månedlige_utgifter_tabell[[#This Row],[Forventede kostnader]]=\"\",Månedlige_utgifter_tabell[[#This Row],[Faktiske kostnader]]=\"\"),\"\",Månedlige_utgifter_tabell[[#This Row],[Forventede kostnader]]-Månedlige_utgifter_tabell[[#This Row],[Faktiske kostnader]])","v":{"v":-4,"d":"-kr 4"}},{"$f":"Månedlige_utgifter_tabell[[#This Row],[Faktiske kostnader]]","v":39}]
[null,"Utstyr","Bolig",{"v":40,"d":"kr 40"},{"v":55,"d":"kr 55"},{"$f":"IF(OR(Månedlige_utgifter_tabell[[#This Row],[Forventede kostnader]]=\"\",Månedlige_utgifter_tabell[[#This Row],[Faktiske kostnader]]=\"\"),\"\",Månedlige_utgifter_tabell[[#This Row],[Forventede kostnader]]-Månedlige_utgifter_tabell[[#This Row],[Faktiske kostnader]])","v":{"v":-15,"d":"-kr 15"}},{"$f":"Månedlige_utgifter_tabell[[#This Row],[Faktiske kostnader]]","v":55}]
[null,"Søppeltømming og resirkulering","Bolig",{"v":25,"d":"kr 25"},{"v":22,"d":"kr 22"},{"$f":"IF(OR(Månedlige_utgifter_tabell[[#This Row],[Forventede kostnader]]=\"\",Månedlige_utgifter_tabell[[#This Row],[Faktiske kostnader]]=\"\"),\"\",Månedlige_utgifter_tabell[[#This Row],[Forventede kostnader]]-Månedlige_utgifter_tabell[[#This Row],[Faktiske kostnader]])","v":{"v":3,"d":"kr 3"}},{"$f":"Månedlige_utgifter_tabell[[#This Row],[Faktiske kostnader]]","v":22}]
[null,"Vann og kloakk","Bolig",{"v":25,"d":"kr 25"},{"v":26,"d":"kr 26"},{"$f":"IF(OR(Månedlige_utgifter_tabell[[#This Row],[Forventede kostnader]]=\"\",Månedlige_utgifter_tabell[[#This Row],[Faktiske kostnader]]=\"\"),\"\",Månedlige_utgifter_tabell[[#This Row],[Forventede kostnader]]-Månedlige_utgifter_tabell[[#This Row],[Faktiske kostnader]])","v":{"v":-1,"d":"-kr 1"}},{"$f":"Månedlige_utgifter_tabell[[#This Row],[Faktiske kostnader]]","v":26}]
[null,"Helse","Forsikring",{"v":400,"d":"kr 400"},{"v":400,"d":"kr 400"},{"$f":"IF(OR(Månedlige_utgifter_tabell[[#This Row],[Forventede kostnader]]=\"\",Månedlige_utgifter_tabell[[#This Row],[Faktiske kostnader]]=\"\"),\"\",Månedlige_utgifter_tabell[[#This Row],[Forventede kostnader]]-Månedlige_utgifter_tabell[[#This Row],[Faktiske kostnader]])","v":{"v":0,"d":"kr 0"}},{"$f":"Månedlige_utgifter_tabell[[#This Row],[Faktiske kostnader]]","v":400}]
[null,"Hjem","Forsikring",{"v":400,"d":"kr 400"},{"v":400,"d":"kr 400"},{"$f":"IF(OR(Månedlige_utgifter_tabell[[#This Row],[Forventede kostnader]]=\"\",Månedlige_utgifter_tabell[[#This Row],[Faktiske kostnader]]=\"\"),\"\",Månedlige_utgifter_tabell[[#This Row],[Forventede kostnader]]-Månedlige_utgifter_tabell[[#This Row],[Faktiske kostnader]])","v":{"v":0,"d":"kr 0"}},{"$f":"Månedlige_utgifter_tabell[[#This Row],[Faktiske kostnader]]","v":400}]
[null,"Liv","Forsikring",{"v":100,"d":"kr 100"},{"v":100,"d":"kr 100"},{"$f":"IF(OR(Månedlige_utgifter_tabell[[#This Row],[Forventede kostnader]]=\"\",Månedlige_utgifter_tabell[[#This Row],[Faktiske kostnader]]=\"\"),\"\",Månedlige_utgifter_tabell[[#This Row],[Forventede kostnader]]-Månedlige_utgifter_tabell[[#This Row],[Faktiske kostnader]])","v":{"v":0,"d":"kr 0"}},{"$f":"Månedlige_utgifter_tabell[[#This Row],[Faktiske kostnader]]","v":100}]
[null,"Kredittkort 1","Lån",{"v":200,"d":"kr 200"},{"v":200,"d":"kr 200"},{"$f":"IF(OR(Månedlige_utgifter_tabell[[#This Row],[Forventede kostnader]]=\"\",Månedlige_utgifter_tabell[[#This Row],[Faktiske kostnader]]=\"\"),\"\",Månedlige_utgifter_tabell[[#This Row],[Forventede kostnader]]-Månedlige_utgifter_tabell[[#This Row],[Faktiske kostnader]])","v":{"v":0,"d":"kr 0"}},{"$f":"Månedlige_utgifter_tabell[[#This Row],[Faktiske kostnader]]","v":200}]
[null,"Kredittkort 2","Lån",null,null,{"$f":"IF(OR(Månedlige_utgifter_tabell[[#This Row],[Forventede kostnader]]=\"\",Månedlige_utgifter_tabell[[#This Row],[Faktiske kostnader]]=\"\"),\"\",Månedlige_utgifter_tabell[[#This Row],[Forventede kostnader]]-Månedlige_utgifter_tabell[[#This Row],[Faktiske kostnader]])","v":""},{"$f":"Månedlige_utgifter_tabell[[#This Row],[Faktiske kostnader]]","v":0}]
[null,"Kredittkort 3","Lån",null,null,{"$f":"IF(OR(Månedlige_utgifter_tabell[[#This Row],[Forventede kostnader]]=\"\",Månedlige_utgifter_tabell[[#This Row],[Faktiske kostnader]]=\"\"),\"\",Månedlige_utgifter_tabell[[#This Row],[Forventede kostnader]]-Månedlige_utgifter_tabell[[#This Row],[Faktiske kostnader]])","v":""},{"$f":"Månedlige_utgifter_tabell[[#This Row],[Faktiske kostnader]]","v":0}]
[null,"Personlig","Lån",null,null,{"$f":"IF(OR(Månedlige_utgifter_tabell[[#This Row],[Forventede kostnader]]=\"\",Månedlige_utgifter_tabell[[#This Row],[Faktiske kostnader]]=\"\"),\"\",Månedlige_utgifter_tabell[[#This Row],[Forventede kostnader]]-Månedlige_utgifter_tabell[[#This Row],[Faktiske kostnader]])","v":""},{"$f":"Månedlige_utgifter_tabell[[#This Row],[Faktiske kostnader]]","v":0}]
[null,"Student","Lån",null,null,{"$f":"IF(OR(Månedlige_utgifter_tabell[[#This Row],[Forventede kostnader]]=\"\",Månedlige_utgifter_tabell[[#This Row],[Faktiske kostnader]]=\"\"),\"\",Månedlige_utgifter_tabell[[#This Row],[Forventede kostnader]]-Månedlige_utgifter_tabell[[#This Row],[Faktiske kostnader]])","v":""},{"$f":"Månedlige_utgifter_tabell[[#This Row],[Faktiske kostnader]]","v":0}]
[null,"Klær","Personlig pleie",{"v":150,"d":"kr 150"},{"v":140,"d":"kr 140"},{"$f":"IF(OR(Månedlige_utgifter_tabell[[#This Row],[Forventede kostnader]]=\"\",Månedlige_utgifter_tabell[[#This Row],[Faktiske kostnader]]=\"\"),\"\",Månedlige_utgifter_tabell[[#This Row],[Forventede kostnader]]-Månedlige_utgifter_tabell[[#This Row],[Faktiske kostnader]])","v":{"v":10,"d":"kr 10"}},{"$f":"Månedlige_utgifter_tabell[[#This Row],[Faktiske kostnader]]","v":140}]
[null,"Rens av klær","Personlig pleie",null,null,{"$f":"IF(OR(Månedlige_utgifter_tabell[[#This Row],[Forventede kostnader]]=\"\",Månedlige_utgifter_tabell[[#This Row],[Faktiske kostnader]]=\"\"),\"\",Månedlige_utgifter_tabell[[#This Row],[Forventede kostnader]]-Månedlige_utgifter_tabell[[#This Row],[Faktiske kostnader]])","v":""},{"$f":"Månedlige_utgifter_tabell[[#This Row],[Faktiske kostnader]]","v":0}]
[null,"Hår/negler","Personlig pleie",null,null,{"$f":"IF(OR(Månedlige_utgifter_tabell[[#This Row],[Forventede kostnader]]=\"\",Månedlige_utgifter_tabell[[#This Row],[Faktiske kostnader]]=\"\"),\"\",Månedlige_utgifter_tabell[[#This Row],[Forventede kostnader]]-Månedlige_utgifter_tabell[[#This Row],[Faktiske kostnader]])","v":""},{"$f":"Månedlige_utgifter_tabell[[#This Row],[Faktiske kostnader]]","v":0}]
[null,"Treningsstudio","Personlig pleie",null,null,{"$f":"IF(OR(Månedlige_utgifter_tabell[[#This Row],[Forventede kostnader]]=\"\",Månedlige_utgifter_tabell[[#This Row],[Faktiske kostnader]]=\"\"),\"\",Månedlige_utgifter_tabell[[#This Row],[Forventede kostnader]]-Månedlige_utgifter_tabell[[#This Row],[Faktiske kostnader]])","v":""},{"$f":"Månedlige_utgifter_tabell[[#This Row],[Faktiske kostnader]]","v":0}]
[null,"Medisinsk","Personlig pleie",null,null,{"$f":"IF(OR(Månedlige_utgifter_tabell[[#This Row],[Forventede kostnader]]=\"\",Månedlige_utgifter_tabell[[#This Row],[Faktiske kostnader]]=\"\"),\"\",Månedlige_utgifter_tabell[[#This Row],[Forventede kostnader]]-Månedlige_utgifter_tabell[[#This Row],[Faktiske kostnader]])","v":""},{"$f":"Månedlige_utgifter_tabell[[#This Row],[Faktiske kostnader]]","v":0}]
[null,"Mat","Kjæledyr",{"v":150,"d":"kr 150"},{"v":75,"d":"kr 75"},{"$f":"IF(OR(Månedlige_utgifter_tabell[[#This Row],[Forventede kostnader]]=\"\",Månedlige_utgifter_tabell[[#This Row],[Faktiske kostnader]]=\"\"),\"\",Månedlige_utgifter_tabell[[#This Row],[Forventede kostnader]]-Månedlige_utgifter_tabell[[#This Row],[Faktiske kostnader]])","v":{"v":75,"d":"kr 75"}},{"$f":"Månedlige_utgifter_tabell[[#This Row],[Faktiske kostnader]]","v":75}]
[null,"Pleie","Kjæledyr",{"v":20,"d":"kr 20"},{"v":25,"d":"kr 25"},{"$f":"IF(OR(Månedlige_utgifter_tabell[[#This Row],[Forventede kostnader]]=\"\",Månedlige_utgifter_tabell[[#This Row],[Faktiske kostnader]]=\"\"),\"\",Månedlige_utgifter_tabell[[#This Row],[Forventede kostnader]]-Månedlige_utgifter_tabell[[#This Row],[Faktiske kostnader]])","v":{"v":-5,"d":"-kr 5"}},{"$f":"Månedlige_utgifter_tabell[[#This Row],[Faktiske kostnader]]","v":25}]
[null,"Medisinsk","Kjæledyr",null,null,{"$f":"IF(OR(Månedlige_utgifter_tabell[[#This Row],[Forventede kostnader]]=\"\",Månedlige_utgifter_tabell[[#This Row],[Faktiske kostnader]]=\"\"),\"\",Månedlige_utgifter_tabell[[#This Row],[Forventede kostnader]]-Månedlige_utgifter_tabell[[#This Row],[Faktiske kostnader]])","v":""},{"$f":"Månedlige_utgifter_tabell[[#This Row],[Faktiske kostnader]]","v":0}]
[null,"Leker","Kjæledyr",null,null,{"$f":"IF(OR(Månedlige_utgifter_tabell[[#This Row],[Forventede kostnader]]=\"\",Månedlige_utgifter_tabell[[#This Row],[Faktiske kostnader]]=\"\"),\"\",Månedlige_utgifter_tabell[[#This Row],[Forventede kostnader]]-Månedlige_utgifter_tabell[[#This Row],[Faktiske kostnader]])","v":""},{"$f":"Månedlige_utgifter_tabell[[#This Row],[Faktiske kostnader]]","v":0}]
[null,"Investeringskonto","Sparing",{"v":200,"d":"kr 200"},{"v":200,"d":"kr 200"},{"$f":"IF(OR(Månedlige_utgifter_tabell[[#This Row],[Forventede kostnader]]=\"\",Månedlige_utgifter_tabell[[#This Row],[Faktiske kostnader]]=\"\"),\"\",Månedlige_utgifter_tabell[[#This Row],[Forventede kostnader]]-Månedlige_utgifter_tabell[[#This Row],[Faktiske kostnader]])","v":{"v":0,"d":"kr 0"}},{"$f":"Månedlige_utgifter_tabell[[#This Row],[Faktiske kostnader]]","v":200}]
[null,"Pensjonskonto","Sparing",null,null,{"$f":"IF(OR(Månedlige_utgifter_tabell[[#This Row],[Forventede kostnader]]=\"\",Månedlige_utgifter_tabell[[#This Row],[Faktiske kostnader]]=\"\"),\"\",Månedlige_utgifter_tabell[[#This Row],[Forventede kostnader]]-Månedlige_utgifter_tabell[[#This Row],[Faktiske kostnader]])","v":""},{"$f":"Månedlige_utgifter_tabell[[#This Row],[Faktiske kostnader]]","v":0}]
[null,"Føderal","Skatter og avgifter",{"v":300,"d":"kr 300"},{"v":300,"d":"kr 300"},{"$f":"IF(OR(Månedlige_utgifter_tabell[[#This Row],[Forventede kostnader]]=\"\",Månedlige_utgifter_tabell[[#This Row],[Faktiske kostnader]]=\"\"),\"\",Månedlige_utgifter_tabell[[#This Row],[Forventede kostnader]]-Månedlige_utgifter_tabell[[#This Row],[Faktiske kostnader]])","v":{"v":0,"d":"kr 0"}},{"$f":"Månedlige_utgifter_tabell[[#This Row],[Faktiske kostnader]]","v":300}]
[null,"Lokal","Skatter og avgifter",null,null,{"$f":"IF(OR(Månedlige_utgifter_tabell[[#This Row],[Forventede kostnader]]=\"\",Månedlige_utgifter_tabell[[#This Row],[Faktiske kostnader]]=\"\"),\"\",Månedlige_utgifter_tabell[[#This Row],[Forventede kostnader]]-Månedlige_utgifter_tabell[[#This Row],[Faktiske kostnader]])","v":""},{"$f":"Månedlige_utgifter_tabell[[#This Row],[Faktiske kostnader]]","v":0}]
[null,"Delstat","Skatter og avgifter",null,null,{"$f":"IF(OR(Månedlige_utgifter_tabell[[#This Row],[Forventede kostnader]]=\"\",Månedlige_utgifter_tabell[[#This Row],[Faktiske kostnader]]=\"\"),\"\",Månedlige_utgifter_tabell[[#This Row],[Forventede kostnader]]-Månedlige_utgifter_tabell[[#This Row],[Faktiske kostnader]])","v":""},{"$f":"Månedlige_utgifter_tabell[[#This Row],[Faktiske kostnader]]","v":0}]
[null,"Buss og taxi","Transport",{"v":100,"d":"kr 100"},{"v":150,"d":"kr 150"},{"$f":"IF(OR(Månedlige_utgifter_tabell[[#This Row],[Forventede kostnader]]=\"\",Månedlige_utgifter_tabell[[#This Row],[Faktiske kostnader]]=\"\"),\"\",Månedlige_utgifter_tabell[[#This Row],[Forventede kostnader]]-Månedlige_utgifter_tabell[[#This Row],[Faktiske kostnader]])","v":{"v":-50,"d":"-kr 50"}},{"$f":"Månedlige_utgifter_tabell[[#This Row],[Faktiske kostnader]]","v":150}]
[null,"Drivstoff","Transport",{"v":450,"d":"kr 450"},{"v":400,"d":"kr 400"},{"$f":"IF(OR(Månedlige_utgifter_tabell[[#This Row],[Forventede kostnader]]=\"\",Månedlige_utgifter_tabell[[#This Row],[Faktiske kostnader]]=\"\"),\"\",Månedlige_utgifter_tabell[[#This Row],[Forventede kostnader]]-Månedlige_utgifter_tabell[[#This Row],[Faktiske kostnader]])","v":{"v":50,"d":"kr 50"}},{"$f":"Månedlige_utgifter_tabell[[#This Row],[Faktiske kostnader]]","v":400}]
[null,"Forsikring","Transport",{"v":300,"d":"kr 300"},{"v":300,"d":"kr 300"},{"$f":"IF(OR(Månedlige_utgifter_tabell[[#This Row],[Forventede kostnader]]=\"\",Månedlige_utgifter_tabell[[#This Row],[Faktiske kostnader]]=\"\"),\"\",Månedlige_utgifter_tabell[[#This Row],[Forventede kostnader]]-Månedlige_utgifter_tabell[[#This Row],[Faktiske kostnader]])","v":{"v":0,"d":"kr 0"}},{"$f":"Månedlige_utgifter_tabell[[#This Row],[Faktiske kostnader]]","v":300}]
[null,"Lisensiering ","Transport",{"v":25,"d":"kr 25"},{"v":25,"d":"kr 25"},{"$f":"IF(OR(Månedlige_utgifter_tabell[[#This Row],[Forventede kostnader]]=\"\",Månedlige_utgifter_tabell[[#This Row],[Faktiske kostnader]]=\"\"),\"\",Månedlige_utgifter_tabell[[#This Row],[Forventede kostnader]]-Månedlige_utgifter_tabell[[#This Row],[Faktiske kostnader]])","v":{"v":0,"d":"kr 0"}},{"$f":"Månedlige_utgifter_tabell[[#This Row],[Faktiske kostnader]]","v":25}]
[null,"Vedlikehold","Transport",{"v":100,"d":"kr 100"},{"v":50,"d":"kr 50"},{"$f":"IF(OR(Månedlige_utgifter_tabell[[#This Row],[Forventede kostnader]]=\"\",Månedlige_utgifter_tabell[[#This Row],[Faktiske kostnader]]=\"\"),\"\",Månedlige_utgifter_tabell[[#This Row],[Forventede kostnader]]-Månedlige_utgifter_tabell[[#This Row],[Faktiske kostnader]])","v":{"v":50,"d":"kr 50"}},{"$f":"Månedlige_utgifter_tabell[[#This Row],[Faktiske kostnader]]","v":50}]
[null,"Parkeringsavgifter","Transport",null,null,{"$f":"IF(OR(Månedlige_utgifter_tabell[[#This Row],[Forventede kostnader]]=\"\",Månedlige_utgifter_tabell[[#This Row],[Faktiske kostnader]]=\"\"),\"\",Månedlige_utgifter_tabell[[#This Row],[Forventede kostnader]]-Månedlige_utgifter_tabell[[#This Row],[Faktiske kostnader]])","v":""},{"$f":"Månedlige_utgifter_tabell[[#This Row],[Faktiske kostnader]]","v":0}]
[null,"Billån","Transport",{"v":450,"d":"kr 450"},{"v":450,"d":"kr 450"},{"$f":"IF(OR(Månedlige_utgifter_tabell[[#This Row],[Forventede kostnader]]=\"\",Månedlige_utgifter_tabell[[#This Row],[Faktiske kostnader]]=\"\"),\"\",Månedlige_utgifter_tabell[[#This Row],[Forventede kostnader]]-Månedlige_utgifter_tabell[[#This Row],[Faktiske kostnader]])","v":{"v":0,"d":"kr 0"}},{"$f":"Månedlige_utgifter_tabell[[#This Row],[Faktiske kostnader]]","v":450}]

{"sheet":"Ekstra data","index":3,"n_rows":17,"n_cols":6,"rows_kept":17}
[{"$nulls":5}," "]
[null,"Pivottabell for Budsjett-diagrammet",null,null,"Kategoriliste"]
[]
[null,"Kategorier","Kostnader ",null,"Hvis du vil legge til en kategori, skriver du den inn nedenfor"]
[null,"Kjæledyr",{"v":100,"d":"kr 100"},null,"Barn"]
[null,"Gaver og veldedighet",{"v":125,"d":"kr 125"},null,"Underholdning"]
[null,"Personlig pleie",{"v":140,"d":"kr 140"},null,"Mat"]
[null,"Barn",{"v":140,"d":"kr 140"},null,"Gaver og veldedighet"]
[null,"Lån",{"v":200,"d":"kr 200"},null,"Bolig"]
[null,"Sparing",{"v":200,"d":"kr 200"},null,"Forsikring"]
[null,"Skatter og avgifter",{"v":300,"d":"kr 300"},null,"Lån"]
[null,"Underholdning",{"v":358,"d":"kr 358"},null,"Personlig pleie"]
[null,"Forsikring",{"v":900,"d":"kr 900"},null,"Kjæledyr"]
[null,"Mat",{"v":1320,"d":"kr 1,320"},null,"Sparing"]
[null,"Transport",{"v":1375,"d":"kr 1,375"},null,"Skatter og avgifter"]
[null,"Bolig",{"v":2702,"d":"kr 2,702"},null,"Transport"]
[null,"Suma końcowa",{"v":7860,"d":"kr 7,860"}]